[Event "Championnat d'Europe de Blitz"]
[Date "2024.12.09"]
[White "Stoinev, Metodi"]
[Black "Djukic, Nikola"]
[WhiteElo "2132"]
[BlackElo "2493"]
[Round "1.24"]
[Result "1/2-1/2"]
[TimeControl "180+2"]

1. Nf3 {[%clk 00:03:03]} Nf6 {[%emt 00:00:10] [%clk 00:03:02]} 2. d4 {[%clk
00:03:04]} g6 {[%clk 00:03:02]} 3. Nc3 {[%emt 00:00:13] [%clk 00:02:56]} d5
{[%clk 00:03:02]} 4. Bf4 {[%clk 00:02:55]} Bg7 {[%clk 00:03:03]} 5. Qd2 {[%emt
00:00:06] [%clk 00:02:50]} O-O {[%emt 00:00:08] [%clk 00:02:57]} 6. Bh6 {[%emt
00:00:03] [%clk 00:02:48]} c5 {[%emt 00:00:01] [%clk 00:02:58]} 7. Bxg7 {[%emt
00:00:03] [%clk 00:02:48]} Kxg7 {[%emt 00:00:02] [%clk 00:02:58]} 8. e3 {[%emt
00:00:27] [%clk 00:02:22]} cxd4 {[%emt 00:00:26] [%clk 00:02:34]} 9. exd4 {[%emt
00:00:05] [%clk 00:02:20]} Nc6 {[%emt 00:00:04] [%clk 00:02:32]} 10. a3 {[%emt
00:00:18] [%clk 00:02:05]} Ne4 {[%emt 00:00:13] [%clk 00:02:20]} 11. Qe3 {[%emt
00:00:09] [%clk 00:01:57]} Nxc3 {[%emt 00:00:07] [%clk 00:02:15]} 12. Qxc3
{[%emt 00:00:08] [%clk 00:01:51]} Bg4 {[%emt 00:00:07] [%clk 00:02:10]} 13. Be2
{[%emt 00:00:08] [%clk 00:01:45]} Rc8 {[%emt 00:00:13] [%clk 00:01:59]} 14. Qd2
{[%clk 00:01:47]} Qb6 {[%emt 00:00:21] [%clk 00:01:40]} 15. c3 {[%emt 00:00:07]
[%clk 00:01:42]} Na5 {[%emt 00:00:01] [%clk 00:01:40]} 16. Rb1 {[%emt 00:00:15]
[%clk 00:01:30]} Nc4 {[%emt 00:00:18] [%clk 00:01:24]} 17. Bxc4 {[%emt 00:00:02]
[%clk 00:01:30]} Bxf3 {[%emt 00:00:01] [%clk 00:01:24]} 18. Bf1 {[%emt 00:00:29]
[%clk 00:01:03]} Qe6+ {[%emt 00:00:16] [%clk 00:01:10]} 19. Qe3 {[%emt 00:00:10]
[%clk 00:00:55]} Qxe3+ {[%emt 00:00:02] [%clk 00:01:10]} 20. fxe3 {[%emt
00:00:01] [%clk 00:00:57]} Be4 {[%emt 00:00:01] [%clk 00:01:11]} 21. Rd1 {[%emt
00:00:04] [%clk 00:00:55]} Rc6 {[%emt 00:00:02] [%clk 00:01:11]} 22. Kf2 {[%emt
00:00:06] [%clk 00:00:51]} Rf6+ {[%emt 00:00:01] [%clk 00:01:12]} 23. Ke1 {[%emt
00:00:04] [%clk 00:00:48]} Rb6 {[%emt 00:00:02] [%clk 00:01:12]} 24. Rd2 {[%clk
00:00:50]} f5 {[%emt 00:00:07] [%clk 00:01:06]} 25. Rg1 {[%emt 00:00:03] [%clk
00:00:49]} f4 {[%emt 00:00:03] [%clk 00:01:06]} 26. exf4 {[%emt 00:00:02] [%clk
00:00:49]} Rxf4 {[%emt 00:00:02] [%clk 00:01:06]} 27. g3 {[%emt 00:00:01] [%clk
00:00:49]} Rff6 {[%emt 00:00:07] [%clk 00:01:01]} 28. Bg2 {[%emt 00:00:01] [%clk
00:00:50]} Rfe6 {[%emt 00:00:04] [%clk 00:01:00]} 29. Kd1 {[%emt 00:00:02] [%clk
00:00:50]} g5 {[%emt 00:00:08] [%clk 00:00:53]} 30. Re1 {[%emt 00:00:06] [%clk
00:00:44]} Bxg2 {[%emt 00:00:07] [%clk 00:00:50]} 31. Rxg2 {[%emt 00:00:03]
[%clk 00:00:44]} Rxe1+ {[%emt 00:00:03] [%clk 00:00:49]} 32. Kxe1 {[%clk
00:00:45]} Rh6 {[%emt 00:00:12] [%clk 00:00:39]} 33. Kd2 {[%emt 00:00:03] [%clk
00:00:45]} Rf6 {[%emt 00:00:07] [%clk 00:00:34]} 34. Ke3 {[%emt 00:00:08] [%clk
00:00:39]} b5 {[%emt 00:00:02] [%clk 00:00:34]} 35. Rf2 {[%emt 00:00:05] [%clk
00:00:35]} h5 {[%emt 00:00:05] [%clk 00:00:32]} 36. h3 {[%emt 00:00:02] [%clk
00:00:35]} Kg6 {[%emt 00:00:04] [%clk 00:00:30]} 37. b3 {[%emt 00:00:07] [%clk
00:00:29]} Ra6 {[%emt 00:00:08] [%clk 00:00:25]} 38. Ra2 {[%emt 00:00:02] [%clk
00:00:29]} Rc6 {[%emt 00:00:10] [%clk 00:00:17]} 39. Kd3 {[%emt 00:00:01] [%clk
00:00:30]} Rf6 {[%emt 00:00:03] [%clk 00:00:16]} 40. Ke2 {[%emt 00:00:05] [%clk
00:00:27]} g4 {[%emt 00:00:02] [%clk 00:00:16]} 41. hxg4 {[%emt 00:00:01] [%clk
00:00:28]} hxg4 {[%emt 00:00:01] [%clk 00:00:17]} 42. a4 {[%emt 00:00:04] [%clk
00:00:26]} bxa4 {[%emt 00:00:04] [%clk 00:00:15]} 43. Rxa4 {[%clk 00:00:28]} Rf3
{[%emt 00:00:01] [%clk 00:00:16]} 44. Rxa7 {[%emt 00:00:03] [%clk 00:00:27]} e6
{[%emt 00:00:02] [%clk 00:00:16]} 45. Rc7 {[%emt 00:00:02] [%clk 00:00:26]} Rxg3
{[%emt 00:00:02] [%clk 00:00:16]} 46. b4 {[%clk 00:00:28]} Kf5 {[%emt 00:00:04]
[%clk 00:00:15]} 47. b5 {[%emt 00:00:01] [%clk 00:00:29]} Rg2+ {[%emt 00:00:02]
[%clk 00:00:14]} 48. Ke3 {[%emt 00:00:04] [%clk 00:00:27]} Rb2 {[%emt 00:00:02]
[%clk 00:00:15]} 49. Rf7+ {[%emt 00:00:02] [%clk 00:00:27]} Kg6 {[%emt 00:00:01]
[%clk 00:00:16]} 50. Rf4 {[%emt 00:00:03] [%clk 00:00:26]} Kg5 {[%clk 00:00:17]}
51. Rf8 {[%emt 00:00:03] [%clk 00:00:23]} g3 {[%emt 00:00:06] [%clk 00:00:16]}
52. Rg8+ {[%emt 00:00:02] [%clk 00:00:22]} Kh4 {[%emt 00:00:01] [%clk 00:00:17]}
53. Rg6 {[%emt 00:00:02] [%clk 00:00:23]} g2 {[%emt 00:00:05] [%clk 00:00:14]}
54. Kf3 {[%clk 00:00:22]} Rxb5 {[%emt 00:00:07] [%clk 00:00:11]} 55. Rxg2 {[%emt
00:00:03] [%clk 00:00:21]} Rb3 {[%emt 00:00:01] [%clk 00:00:12]} 56. Rc2 {[%emt
00:00:04] [%clk 00:00:19]} Kg5 {[%emt 00:00:01] [%clk 00:00:13]} 57. Ke3 {[%clk
00:00:21]} Rb1 {[%emt 00:00:03] [%clk 00:00:12]} 58. Rg2+ {[%emt 00:00:02] [%clk
00:00:21]} Kf6 {[%emt 00:00:01] [%clk 00:00:13]} 59. Kd3 {[%emt 00:00:02] [%clk
00:00:21]} Ke7 {[%clk 00:00:14]} 60. Rg8 {[%emt 00:00:02] [%clk 00:00:20]}
1/2-1/2

[Site "Europe Echecs"]

[Event "Championnat d'Europe de Blitz"]
[Date "2024.12.09"]
[White "Mastrovasilis, Dimitrios"]
[Black "Lauda, Alexandr"]
[WhiteElo "2537"]
[BlackElo "2255"]
[Round "1.25"]
[Result "1-0"]
[TimeControl "180+2"]

1. e4 {[%emt 00:00:01] [%clk 00:03:01]} c5 {[%emt 00:00:02] [%clk 00:03:03]} 2.
Nf3 {[%emt 00:00:02] [%clk 00:03:01]} Nc6 {[%emt 00:00:02] [%clk 00:03:04]} 3.
Bb5 {[%emt 00:00:02] [%clk 00:03:00]} g5 {[%clk 00:03:05]} 4. Nxg5 {[%emt
00:00:06] [%clk 00:02:56]} Nf6 {[%emt 00:00:01] [%clk 00:03:06]} 5. d3 {[%emt
00:00:06] [%clk 00:02:52]} Nd4 {[%emt 00:00:06] [%clk 00:03:02]} 6. Bc4 {[%emt
00:00:06] [%clk 00:02:48]} d5 {[%emt 00:00:01] [%clk 00:03:03]} 7. Bxd5 {[%emt
00:00:09] [%clk 00:02:41]} Nxd5 {[%emt 00:00:21] [%clk 00:02:44]} 8. exd5 {[%emt
00:00:01] [%clk 00:02:42]} Qxd5 {[%emt 00:00:02] [%clk 00:02:44]} 9. O-O {[%emt
00:00:02] [%clk 00:02:42]} Rg8 {[%emt 00:00:34] [%clk 00:02:15]} 10. Nc3 {[%clk
00:02:43]} Qc6 {[%emt 00:00:41] [%clk 00:01:34]} 11. Qh5 {[%emt 00:00:23] [%clk
00:02:21]} Rg6 {[%emt 00:00:18] [%clk 00:01:18]} 12. Bf4 {[%emt 00:00:51] [%clk
00:01:32]} h6 {[%emt 00:00:19] [%clk 00:01:02]} 13. Nge4 {[%emt 00:00:03] [%clk
00:01:31]} Bg4 {[%emt 00:00:15] [%clk 00:00:49]} 14. Qxc5 {[%emt 00:00:11] [%clk
00:01:21]} Bf3 {[%emt 00:00:44] [%clk 00:00:08]} 15. Qxc6+ {[%emt 00:00:04]
[%clk 00:01:19]} bxc6 {[%emt 00:00:02] [%clk 00:00:08]} 16. Bg3 {[%emt 00:00:03]
[%clk 00:01:18]} Bxe4 {[%emt 00:00:04] [%clk 00:00:06]} 17. Nxe4 {[%emt
00:00:03] [%clk 00:01:17]} Bg7 {[%emt 00:00:03] [%clk 00:00:05]} 18. c3 {[%emt
00:00:06] [%clk 00:01:13]} Ne6 {[%emt 00:00:04] [%clk 00:00:03]} 19. Rfe1 {[%emt
00:00:03] [%clk 00:01:11]} f5 {[%emt 00:00:04] [%clk 00:00:00]} 1-0

[Site "Europe Echecs"]

[Event "Championnat d'Europe de Blitz"]
[Date "2024.12.09"]
[White "Kozul, Zdenko"]
[Black "Vanden Bussche, Steven"]
[WhiteElo "2519"]
[BlackElo "2049"]
[Round "1.27"]
[Result "1-0"]
[TimeControl "180+2"]

1. d4 {[%emt 00:27:18] [%clk 00:03:03]} c6 {[%emt 00:00:01] [%clk 00:03:03]} 2.
c4 {[%emt 00:00:01] [%clk 00:03:04]} Nf6 {[%emt 00:00:01] [%clk 00:03:04]} 3.
Nf3 {[%clk 00:03:05]} d5 {[%clk 00:03:05]} 4. Nc3 {[%emt 00:00:01] [%clk
00:03:06]} dxc4 {[%emt 00:00:02] [%clk 00:03:05]} 5. e4 {[%clk 00:03:07]} Bg4
{[%emt 00:00:02] [%clk 00:03:04]} 6. Bxc4 {[%emt 00:00:15] [%clk 00:02:54]} e6
{[%emt 00:00:02] [%clk 00:03:04]} 7. Be3 {[%emt 00:00:20] [%clk 00:02:36]} Nbd7
{[%emt 00:00:01] [%clk 00:03:05]} 8. Be2 {[%emt 00:00:06] [%clk 00:02:32]} Be7
{[%emt 00:00:08] [%clk 00:03:00]} 9. O-O {[%emt 00:00:03] [%clk 00:02:31]} O-O
{[%emt 00:00:03] [%clk 00:02:59]} 10. Qc2 {[%emt 00:00:02] [%clk 00:02:31]} Bh5
{[%emt 00:00:02] [%clk 00:02:59]} 11. Rad1 {[%emt 00:00:04] [%clk 00:02:29]} Bg6
{[%emt 00:00:42] [%clk 00:02:19]} 12. Ne5 {[%emt 00:00:33] [%clk 00:01:57]} Qc8
{[%emt 00:00:50] [%clk 00:01:31]} 13. f4 {[%emt 00:00:03] [%clk 00:01:56]} Nxe5
{[%emt 00:00:08] [%clk 00:01:26]} 14. dxe5 {[%emt 00:00:02] [%clk 00:01:56]} Nd5
{[%clk 00:01:26]} 15. Nxd5 {[%emt 00:00:13] [%clk 00:01:46]} cxd5 {[%emt
00:00:21] [%clk 00:01:08]} 16. Qxc8 {[%emt 00:00:01] [%clk 00:01:46]} Rfxc8
{[%emt 00:00:01] [%clk 00:01:09]} 17. f5 {[%clk 00:01:48]} Rc2 {[%emt 00:00:10]
[%clk 00:01:01]} 18. Bd3 {[%emt 00:00:15] [%clk 00:01:35]} Rxb2 {[%emt 00:00:05]
[%clk 00:00:58]} 19. fxg6 {[%emt 00:00:02] [%clk 00:01:35]} hxg6 {[%emt
00:00:04] [%clk 00:00:56]} 20. exd5 {[%emt 00:00:02] [%clk 00:01:35]} exd5
{[%emt 00:00:06] [%clk 00:00:52]} 21. Rb1 {[%emt 00:00:08] [%clk 00:01:29]} Rxa2
{[%emt 00:00:09] [%clk 00:00:45]} 22. Rxb7 {[%emt 00:00:01] [%clk 00:01:29]} Re8
{[%emt 00:00:11] [%clk 00:00:37]} 23. Bb5 {[%emt 00:00:02] [%clk 00:01:30]} 1-0

[Site "Europe Echecs"]

[Event "Championnat d'Europe de Blitz"]
[Date "2024.12.09"]
[White "Tomasi, Elise"]
[Black "Motylev, Alexander"]
[WhiteElo "2073"]
[BlackElo "2596"]
[Round "1.28"]
[Result "0-1"]
[TimeControl "180+2"]

1. d4 {[%emt 00:00:01] [%clk 00:03:02]} d5 {[%emt 00:00:03] [%clk 00:03:02]} 2.
Nf3 {[%emt 00:00:08] [%clk 00:02:57]} Nf6 {[%emt 00:00:03] [%clk 00:03:00]} 3.
g3 {[%emt 00:00:01] [%clk 00:02:57]} c5 {[%emt 00:00:05] [%clk 00:02:58]} 4. Bg2
{[%emt 00:00:02] [%clk 00:02:57]} cxd4 {[%emt 00:00:11] [%clk 00:02:49]} 5. O-O
{[%emt 00:00:02] [%clk 00:02:57]} h6 {[%emt 00:00:02] [%clk 00:02:49]} 6. b3
{[%emt 00:00:02] [%clk 00:02:58]} h5 {[%emt 00:00:02] [%clk 00:02:49]} 7. h4
{[%emt 00:00:01] [%clk 00:02:58]} Bg4 {[%emt 00:00:02] [%clk 00:02:49]} 8. Qxd4
{[%emt 00:00:32] [%clk 00:02:29]} Nc6 {[%emt 00:00:02] [%clk 00:02:48]} 9. Qa4
{[%emt 00:00:07] [%clk 00:02:24]} Nd7 {[%emt 00:01:35] [%clk 00:01:15]} 10. Bb2
{[%emt 00:01:02] [%clk 00:01:25]} e6 {[%emt 00:00:02] [%clk 00:01:14]} 11. Qf4
{[%emt 00:00:23] [%clk 00:01:03]} f6 {[%emt 00:00:06] [%clk 00:01:10]} 12. c4
{[%emt 00:00:18] [%clk 00:00:47]} e5 {[%emt 00:00:07] [%clk 00:01:05]} 13. Qd2
{[%emt 00:00:01] [%clk 00:00:48]} dxc4 {[%emt 00:00:14] [%clk 00:00:53]} 14. Qc2
{[%emt 00:00:10] [%clk 00:00:40]} Be6 {[%emt 00:00:29] [%clk 00:00:26]} 15. bxc4
{[%emt 00:00:14] [%clk 00:00:29]} Bc5 {[%emt 00:00:07] [%clk 00:00:20]} 16. Qg6+
{[%emt 00:00:03] [%clk 00:00:28]} Kf8 {[%emt 00:00:02] [%clk 00:00:20]} 17. Ng5
{[%emt 00:00:12] [%clk 00:00:18]} Bg8 {[%emt 00:00:06] [%clk 00:00:17]} 18. Qf5
{[%emt 00:00:07] [%clk 00:00:13]} Qe7 {[%emt 00:00:06] [%clk 00:00:13]} 19. Nc3
{[%emt 00:00:04] [%clk 00:00:10]} Nd4 {[%emt 00:00:02] [%clk 00:00:13]} 20. Qe4
{[%emt 00:00:06] [%clk 00:00:06]} fxg5 {[%emt 00:00:03] [%clk 00:00:12]} 21. Nd5
{[%emt 00:00:03] [%clk 00:00:06]} Bxd5 {[%emt 00:00:05] [%clk 00:00:08]} 22.
Qxd5 {[%emt 00:00:02] [%clk 00:00:06]} Nf6 {[%emt 00:00:01] [%clk 00:00:10]} 23.
Qxb7 {[%emt 00:00:02] [%clk 00:00:06]} Qxb7 {[%clk 00:00:11]} 0-1

[Site "Europe Echecs"]

[Event "Championnat d'Europe de Blitz"]
[Date "2024.12.09"]
[White "Baidetskyi, Valentin"]
[Black "Aliyev, Elnur"]
[WhiteElo "2519"]
[BlackElo "2079"]
[Round "1.29"]
[Result "1-0"]
[TimeControl "180+2"]

1. e4 {[%clk 00:03:02]} g6 {[%emt 00:00:02] [%clk 00:03:03]} 2. d4 {[%emt
00:00:01] [%clk 00:03:03]} c5 {[%emt 00:00:03] [%clk 00:03:01]} 3. dxc5 {[%emt
00:00:05] [%clk 00:03:00]} Qa5+ {[%emt 00:00:06] [%clk 00:02:58]} 4. c3 {[%emt
00:00:03] [%clk 00:02:59]} Qxc5 {[%emt 00:00:02] [%clk 00:02:57]} 5. Nf3 {[%emt
00:00:02] [%clk 00:02:59]} Bg7 {[%emt 00:00:05] [%clk 00:02:53]} 6. Be3 {[%emt
00:00:07] [%clk 00:02:55]} Qc7 {[%emt 00:00:03] [%clk 00:02:52]} 7. Na3 {[%emt
00:00:02] [%clk 00:02:55]} Nc6 {[%emt 00:00:11] [%clk 00:02:43]} 8. Nb5 {[%emt
00:00:10] [%clk 00:02:47]} Qb8 {[%emt 00:00:13] [%clk 00:02:32]} 9. Bc4 {[%emt
00:00:07] [%clk 00:02:42]} Nf6 {[%emt 00:00:14] [%clk 00:02:20]} 10. e5 {[%emt
00:00:32] [%clk 00:02:13]} Nxe5 {[%emt 00:00:20] [%clk 00:02:02]} 11. Nxe5
{[%emt 00:00:01] [%clk 00:02:13]} Qxe5 {[%emt 00:00:02] [%clk 00:02:03]} 12. Qd4
{[%emt 00:00:03] [%clk 00:02:12]} Qxd4 {[%emt 00:00:27] [%clk 00:01:38]} 13.
Bxd4 {[%clk 00:02:13]} Kd8 {[%emt 00:00:22] [%clk 00:01:19]} 14. Bxa7 {[%emt
00:00:18] [%clk 00:01:57]} d5 {[%emt 00:00:06] [%clk 00:01:14]} 15. O-O-O {[%emt
00:00:26] [%clk 00:01:33]} Bh6+ {[%emt 00:00:50] [%clk 00:00:27]} 16. Kb1 {[%emt
00:00:06] [%clk 00:01:29]} Bf5+ {[%emt 00:00:01] [%clk 00:00:28]} 17. Ka1 {[%emt
00:00:08] [%clk 00:01:24]} Kc8 {[%emt 00:00:16] [%clk 00:00:13]} 18. Bd3 {[%emt
00:00:39] [%clk 00:00:46]} Bxd3 {[%emt 00:00:04] [%clk 00:00:11]} 19. Rxd3
{[%clk 00:00:47]} Kd7 {[%emt 00:00:08] [%clk 00:00:06]} 20. Bd4 {[%emt
00:00:08]} Rhe8 {[%emt 00:00:03] [%clk 00:00:03]} 21. Bxf6 {[%emt 00:00:07]
[%clk 00:00:38]} exf6 {[%clk 00:00:05]} 22. Rxd5+ {[%emt 00:00:07] [%clk
00:00:33]} Kc6 {[%clk 00:00:06]} 23. c4 {[%emt 00:00:03] [%clk 00:00:32]} Re4
{[%emt 00:00:04] [%clk 00:00:05]} 24. b3 {[%emt 00:00:08] [%clk 00:00:26]} Bf4
{[%emt 00:00:01] [%clk 00:00:06]} 25. Kb1 {[%emt 00:00:08] [%clk 00:00:19]} Be5
{[%clk 00:00:07]} 26. Rhd1 {[%emt 00:00:05] [%clk 00:00:16]} Re8 {[%emt
00:00:05] [%clk 00:00:05]} 27. f3 {[%emt 00:00:09] [%clk 00:00:09]} Re2 {[%clk
00:00:06]} 28. R5d2 {[%emt 00:00:04] [%clk 00:00:07]} Rxd2 {[%emt 00:00:01]
[%clk 00:00:07]} 29. Rxd2 {[%clk 00:00:08]} Kc5 {[%emt 00:00:02] [%clk
00:00:08]} 30. Re2 {[%emt 00:00:02] [%clk 00:00:07]} Rd8 {[%emt 00:00:02] [%clk
00:00:09]} 31. Kc2 {[%emt 00:00:01] [%clk 00:00:08]} Bxh2 {[%emt 00:00:01] [%clk
00:00:10]} 32. Re7 {[%emt 00:00:02] [%clk 00:00:07]} Bf4 {[%emt 00:00:03] [%clk
00:00:10]} 33. Rxf7 {[%emt 00:00:04] [%clk 00:00:05]} Rd2+ {[%emt 00:00:02]
[%clk 00:00:10]} 34. Kc3 {[%emt 00:00:01] [%clk 00:00:06]} Rxg2 {[%emt 00:00:02]
[%clk 00:00:11]} 35. b4+ {[%emt 00:00:02] [%clk 00:00:06]} Kb6 {[%clk 00:00:12]}
36. Rxf6+ {[%emt 00:00:01] [%clk 00:00:06]} 1-0

[Site "Europe Echecs"]

[Event "Championnat d'Europe de Blitz"]
[Date "2024.12.09"]
[White "Kola, Elvis"]
[Black "Ragger, Markus"]
[WhiteElo "1940"]
[BlackElo "2577"]
[Round "1.30"]
[Result "0-1"]
[TimeControl "180+2"]

1. e4 {[%clk 00:03:02]} e5 {[%clk 00:03:03]} 2. Nf3 {[%clk 00:03:03]} Nc6 {[%clk
00:03:04]} 3. Bb5 {[%clk 00:03:05]} a6 {[%emt 00:00:02] [%clk 00:03:06]} 4. Ba4
{[%clk 00:03:06]} Bc5 {[%clk 00:03:06]} 5. O-O {[%emt 00:00:02] [%clk 00:03:06]}
Nge7 {[%emt 00:00:01] [%clk 00:03:07]} 6. c3 {[%emt 00:00:01] [%clk 00:03:08]}
Ng6 {[%emt 00:00:02] [%clk 00:03:07]} 7. d4 {[%emt 00:00:02] [%clk 00:03:08]}
Ba7 {[%emt 00:00:01] [%clk 00:03:08]} 8. Be3 {[%emt 00:00:09] [%clk 00:03:01]}
O-O {[%emt 00:00:04] [%clk 00:03:06]} 9. Re1 {[%emt 00:00:03] [%clk 00:03:00]}
d6 {[%emt 00:00:27] [%clk 00:02:42]} 10. Nbd2 {[%emt 00:00:03] [%clk 00:02:58]}
exd4 {[%emt 00:00:07] [%clk 00:02:37]} 11. Nxd4 {[%emt 00:00:06] [%clk
00:02:54]} Nxd4 {[%emt 00:00:10] [%clk 00:02:29]} 12. Bxd4 {[%emt 00:00:03]
[%clk 00:02:53]} Bxd4 {[%emt 00:00:33] [%clk 00:01:59]} 13. cxd4 {[%clk
00:02:54]} b5 {[%emt 00:00:01] [%clk 00:02:00]} 14. Bb3 {[%emt 00:00:06] [%clk
00:02:50]} c5 {[%emt 00:00:01] [%clk 00:02:01]} 15. Bd5 {[%emt 00:00:05] [%clk
00:02:47]} Ra7 {[%emt 00:00:03] [%clk 00:02:00]} 16. dxc5 {[%emt 00:00:02] [%clk
00:02:47]} dxc5 {[%emt 00:00:01] [%clk 00:02:00]} 17. Rc1 {[%emt 00:00:01] [%clk
00:02:47]} Ne5 {[%emt 00:00:27] [%clk 00:01:35]} 18. Nb3 {[%emt 00:00:08] [%clk
00:02:41]} c4 {[%emt 00:00:02] [%clk 00:01:36]} 19. Nd4 {[%emt 00:00:05] [%clk
00:02:38]} Nd3 {[%emt 00:00:08] [%clk 00:01:30]} 20. Nc6 {[%emt 00:00:06] [%clk
00:02:34]} Qb6 {[%emt 00:00:02] [%clk 00:01:31]} 21. Qf3 {[%emt 00:00:24] [%clk
00:02:11]} Rc7 {[%emt 00:00:10] [%clk 00:01:23]} 22. Rcd1 {[%emt 00:00:10] [%clk
00:02:03]} Nxe1 {[%emt 00:00:03] [%clk 00:01:21]} 23. Rxe1 {[%emt 00:00:01]
[%clk 00:02:04]} Rxc6 {[%emt 00:00:02] [%clk 00:01:21]} 24. h3 {[%emt 00:00:18]
[%clk 00:01:48]} Rf6 {[%emt 00:00:06] [%clk 00:01:17]} 25. Qg3 {[%emt 00:00:02]
[%clk 00:01:48]} Bb7 {[%emt 00:00:03] [%clk 00:01:17]} 26. e5 {[%emt 00:00:06]
[%clk 00:01:44]} Rg6 {[%emt 00:00:02] [%clk 00:01:17]} 27. Qf3 {[%emt 00:00:03]
[%clk 00:01:43]} Bxd5 {[%emt 00:00:01] [%clk 00:01:17]} 28. Qxd5 {[%emt
00:00:01] [%clk 00:01:44]} Qc6 {[%clk 00:01:19]} 29. Qxc6 {[%emt 00:00:12] [%clk
00:01:35]} Rxc6 {[%emt 00:00:02] [%clk 00:01:19]} 30. Rd1 {[%emt 00:00:07] [%clk
00:01:29]} b4 {[%emt 00:00:03] [%clk 00:01:19]} 0-1

[Site "Europe Echecs"]

[Event "Championnat d'Europe de Blitz"]
[Date "2024.12.09"]
[White "Peyrer, Konstantin"]
[Black "Tomazin, James Marijan"]
[WhiteElo "2440"]
[BlackElo "1931"]
[Round "1.31"]
[Result "1-0"]
[TimeControl "180+2"]

1. e4 {[%emt 00:00:03] [%clk 00:03:00]} c6 {[%emt 00:00:22] [%clk 00:02:42]} 2.
Nf3 {[%emt 00:00:03] [%clk 00:02:59]} d5 {[%emt 00:00:02] [%clk 00:02:43]} 3. d3
{[%emt 00:00:02] [%clk 00:02:59]} Bg4 {[%emt 00:00:04] [%clk 00:02:41]} 4. h3
{[%emt 00:00:05] [%clk 00:02:57]} Bxf3 {[%emt 00:00:01] [%clk 00:02:41]} 5. Qxf3
{[%emt 00:00:02] [%clk 00:02:57]} dxe4 {[%emt 00:00:07] [%clk 00:02:36]} 6. dxe4
{[%emt 00:00:01] [%clk 00:02:57]} Nd7 {[%emt 00:00:04] [%clk 00:02:35]} 7. Nc3
{[%emt 00:00:08] [%clk 00:02:50]} e5 {[%emt 00:00:08] [%clk 00:02:30]} 8. Bc4
{[%emt 00:00:04] [%clk 00:02:48]} Ngf6 {[%emt 00:00:01] [%clk 00:02:31]} 9. Bg5
{[%emt 00:00:01] [%clk 00:02:48]} Qb6 {[%emt 00:00:04] [%clk 00:02:29]} 10.
O-O-O {[%emt 00:00:04] [%clk 00:02:46]} Be7 {[%emt 00:00:04] [%clk 00:02:27]}
11. Rxd7 {[%emt 00:00:05] [%clk 00:02:42]} Kxd7 {[%emt 00:00:07] [%clk
00:02:22]} 12. Bxf7 {[%emt 00:00:02] [%clk 00:02:42]} Kc7 {[%emt 00:00:04] [%clk
00:02:20]} 13. Qf5 {[%emt 00:00:09] [%clk 00:02:35]} Qc5 {[%emt 00:00:14] [%clk
00:02:09]} 14. Be3 {[%emt 00:00:03] [%clk 00:02:34]} Qb4 {[%emt 00:00:05] [%clk
00:02:06]} 15. Qxe5+ {[%emt 00:00:07] [%clk 00:02:29]} Bd6 {[%emt 00:00:03]
[%clk 00:02:04]} 16. Qf5 {[%emt 00:00:06] [%clk 00:02:25]} Rhf8 {[%emt 00:00:02]
[%clk 00:02:04]} 17. Bb3 {[%emt 00:00:02] [%clk 00:02:25]} Rae8 {[%emt 00:00:14]
[%clk 00:01:53]} 18. a3 {[%emt 00:00:12] [%clk 00:02:15]} Nxe4 {[%emt 00:00:41]
[%clk 00:01:14]} 19. Qxf8 {[%emt 00:00:03] [%clk 00:02:14]} Rxf8 {[%emt
00:00:09] [%clk 00:01:07]} 20. axb4 {[%emt 00:00:02] [%clk 00:02:14]} Nxc3
{[%emt 00:00:01] [%clk 00:01:08]} 21. bxc3 {[%emt 00:00:02] [%clk 00:02:15]} Be5
{[%emt 00:00:04] [%clk 00:01:06]} 22. Kb2 {[%emt 00:00:01] [%clk 00:02:16]} 1-0

[Site "Europe Echecs"]